Cogmind - Beta 16 @@@ ROGUE MODE // 2025.11.17 @ 18:52:23 Player: ClassActJerk Result: Self-destructed Performance ------------- Evolutions (2) 1000 Regions Visited (4) 800 Robots Destroyed (21) 105 Value Destroyed (585) 585 Prototype IDs (1) 20 Alien Tech Used (0) 0 Bonus (0) 0 TOTAL SCORE: 2510 Bonus ------- None Cogmind --------- Core Integrity 260/550 Matter 374/450 Energy 108/125 System Corruption 3% Temperature Cool (0) Movement Treading (240) Ox1 Location -8/Materials Parts ------- > --- POWER (1) -------- Light Ion Engine > --- PROPULSION (2) --- Light Treads > --- UTILITY (5) ------ Large Storage Unit Large Matter Pod Power Shielding > --- WEAPON (3) ------- (None) > --- INVENTORY (15) --- Faulty Heavy Ion Engine Cooled Ion Engine Micro Nuclear Core Power Shielding Peak State ------------ > --- POWER ------------ Improved Ion Engine > --- PROPULSION ------- Improved Treads Improved Treads > --- UTILITY ---------- Large Storage Unit Large Matter Pod Power Shielding Weapon Shielding Improved Medium Armor Plating > --- WEAPON ----------- Light Assault Rifle Heavy Assault Rifle Improved Assault Rifle > --- INVENTORY -------- Light Ion Engine Heavy Ion Engine Cooled Ion Engine Micro Nuclear Core Light Treads Power Shielding Flak Gun Rocket Launcher Mini Grenade Launcher [Rating: 22] Favorites ----------- Power Improved Ion Engine Engine Improved Ion Engine Propulsion Light Treads Treads Light Treads Utility Large Matter Pod Storage Large Matter Pod Protection Medium Armor Plating Weapon Assault Rifle Ballistic Gun Assault Rifle Launcher Rocket Launcher Build | -11 -10 -9 -9 -8 ------- Run | Yrd Mat Mat Min Mat Slots Evolved 4 | . . 2 . 2 Power . | . . . . . Propulsion . | . . . . . Utility 3 | . . 1 . 2 Weapon 1 | . . 1 . . Parts Attached 29 | 3 7 8 2 9 Power 4 | 1 1 1 . 1 Engine 4 | 1 1 1 . 1 Core . | . . . . . Reactor . | . . . . . Propulsion 6 | . 2 1 2 1 Treads 6 | . 2 1 2 1 Leg . | . . . . . Wheel . | . . . . . Hover . | . . . . . Flight . | . . . . . Utility 10 | 1 3 3 . 3 Device . | . . . . . Storage 4 | 1 3 . . . Processor . | . . . . . Hackware . | . . . . . Protection 6 | . . 3 . 3 Artifact . | . . . . . Weapon 9 | 1 1 3 . 4 Energy Gun . | . . . . . Energy Cannon . | . . . . . Ballistic Gun 7 | 1 1 3 . 2 Ballistic Cannon . | . . . . . Launcher 2 | . . . . 2 Special Weapon . | . . . . . Impact Weapon . | . . . . . Slashing Weapon . | . . . . . Piercing Weapon . | . . . . . Special Melee Weapon . | . . . . . Unidentified Prototypes 1 | . . . . 1 Parts Lost 11 | . . . . 11 Power 1 | . . . . 1 Propulsion 2 | . . . . 2 Utility 2 | . . . . 2 Weapon 6 | . . . . 6 Highest Loss Streak 11 | . . . . 11 To Critical Strikes 1 | . . . . 1 Average Backups 7 | 3 4 8 9 9 Power 2 | . 1 1 3 3 Propulsion . | 1 . 1 . . Utility 2 | . 2 3 3 1 Weapon 1 | 1 1 1 2 3 Tool/Special . | . . . . . Unused Backups 5 | . 1 . . 4 Power 3 | . . . . 3 Propulsion . | . . . . . Utility 1 | . . . . 1 Weapon 1 | . 1 . . . Tool/Special . | . . . . . Average Slot Usage (%) 95 | . 89 99 99 93 Engine 11 | . 14 11 11 8 Treads 21 | . 21 22 21 16 Storage 22 | . 26 22 22 18 Protection 9 | . . 11 11 24 Ballistic Gun 29 | . 25 32 33 23 Peak Build Rating 22 | 3 8 14 16 22 Average Rating 11 | 2 6 11 15 19 On Entrance 7 | . 3 7 13 16 Avg Prop Armor Cover (%) . | . . . . . Naked Turns . | . . . . . Heaviest Build 49 | 10 32 43 43 49 Greatest Support 46 | 3 40 40 46 46 Greatest Overweight (x) 11 | 3 4 1 . 11 Average Overweight (x) . | 1 . 1 . . Largest Inventory Capacity 15 | 8 15 15 15 15 Average Capacity 13 | 6 11 15 15 15 Most Carried 11 | 5 8 11 11 11 Average Carried 7 | 3 5 8 9 9 Final Capacity 15 | 8 15 15 15 15 Final Carried 11 | 5 7 10 11 4 Class Distribution -------------------- 66% | Tank 33% | Mutant Dominant Class ---------------- Mutant | -10/Materials Tank | -9/Materials Tank | -9/Mines Tank | -8/Materials Resources | -11 -10 -9 -9 -8 ----------- Run | Yrd Mat Mat Min Mat Matter Collected 1040 | 216 360 337 55 72 Remotely . | . . . . . Salvage Created 711 | . 77 399 101 134 Parts 40 | . 6 23 1 10 Haulers Intercepted 1 | . . 1 . . Recyclers Shooed . | . . . . . Parts Field Recycled . | . . . . . Retrieved Matter . | . . . . . Parts Self-Destructed . | . . . . . Prevented . | . . . . . Parts Restored . | . . . . . Kills | -11 -10 -9 -9 -8 ------- Run | Yrd Mat Mat Min Mat Combat Hostiles Destroyed 18 | . 4 9 2 3 Guns 16 | . 4 9 2 1 AOE 2 | . . . . 2 Classes Destroyed 7 | . 2 3 1 1 Worker 2 | . . 1 . 1 Hauler 1 | . . 1 . . Swarmer 6 | . 3 3 . . Grunt 7 | . 1 5 1 . Brawler 1 | . . . 1 . Sentry 2 | . . 1 . 1 Specialist 2 | . . . . 2 Best Kill Streak 3 | . 2 3 2 2 Combat Bots Only 3 | . 2 3 2 2 Max Kills in Single Turn 1 | . 1 1 1 1 Gunslinging . | . . . . . Exploded 1 | . . . . 1 Melee . | . . . . . Uniques/NPCs Destroyed . | . . . . . Combat | -11 -10 -9 -9 -8 -------- Run | Yrd Mat Mat Min Mat Hostile Shots Fired 254 | . 56 71 14 113 Missed 80 | . 19 18 4 39 Hits 174 | . 37 53 10 74 Melee 3 | . . . 3 . Projectile 171 | . 37 53 7 74 Critical Strikes 4 | . 1 . . 3 Damage Taken 2505 | . 347 598 174 1386 Core 453 | . 86 65 12 290 Absorbed by Shields . | . . . . . Redirected to Shielding 74 | . . . . 74 Core Remaining (%) 81 | 100 65 . 80 . Volleys Fired 69 | . 21 34 4 10 Largest 3 | . 2 3 3 3 Hottest 76 | . 40 63 63 76 Shots Fired 182 | . 42 102 12 26 Gun 177 | . 42 102 12 21 Cannon . | . . . . . Launcher 5 | . . . . 5 Special . | . . . . . Kinetic 177 | . 42 102 12 21 Thermal . | . . . . . Explosive 5 | . . . . 5 Electromagnetic . | . . . . . Robot Hit Streak 11 | . 6 11 4 9 Robot Miss Streak 5 | . 5 3 1 4 Penetration Max . | . . . . . Secondary Targets 4 | . 2 1 1 . Max Gunslinging Chain 1 | . 1 1 1 . Shots Hit Robots 118 | . 21 70 9 18 Core Hits 41 | . 5 20 4 12 Critical Kills . | . . . . . Critical Parts Destroyed . | . . . . . Critical Strikes . | . . . . . Melee Attacks . | . . . . . Impact . | . . . . . Slashing . | . . . . . Piercing . | . . . . . Sneak Attacks . | . . . . . Combat Hostiles . | . . . . . Follow-up Attacks . | . . . . . Damage Inflicted 1877 | . 268 856 107 646 Guns 1413 | . 268 856 107 182 Cannons . | . . . . . Explosions 464 | . . . . 464 Melee . | . . . . . Ramming . | . . . . . Kinetic 1413 | . 268 856 107 182 Thermal . | . . . . . Explosive 464 | . . . . 464 Electromagnetic . | . . . . . Impact . | . . . . . Slashing . | . . . . . Piercing . | . . . . . Highest Corruption 3 | . . . . 3 Average Corruption 3 | . . . . 3 Corruption Purged . | . . . . . Corruption Blocked . | . . . . . Effects 2 | . . . . 2 Message Errors 1 | . . . . 1 Matter Fused 1 | . . . . 1 Overload Shots . | . . . . . Overflow Damage 11 | . . . . 11 Projectiles . | . . . . . Explosions 11 | . . . . 11 Melee . | . . . . . Knockbacks . | . . . . . Impact . | . . . . . Kinetic . | . . . . . Secondary . | . . . . . Self-Inflicted Damage 106 | . . . . 106 Shots 5 | . . . . 5 Rammed . | . . . . . Targets Rammed . | . . . . . Kicked . | . . . . . Crushed . | . . . . . Highest Temperature 60 | . . 60 36 39 Average Temperature 18 | . . 18 22 18 Received Heat Transfer 453 | . 60 255 48 90 Siege Activations . | . . . . . Martial Activations . | . . . . . Shielding Activations . | . . . . . Robots Disrupted . | . . . . . Combat Hostiles . | . . . . . Robots Corrupted . | . . . . . Combat Hostiles . | . . . . . Parts Fried . | . . . . . Impact Corruptions . | . . . . . Robots Melted . | . . . . . Combat Hostiles . | . . . . . Parts Melted . | . . . . . Heat Transferred . | . . . . . Parts Sabotaged . | . . . . . Parts Stolen . | . . . . . Parts Stripped . | . . . . . Power Chain Reactions . | . . . . . Alert | -11 -10 -9 -9 -8 ------- Run | Yrd Mat Mat Min Mat Maximum Alert Level . | . . . . . Low Security (%) 100 | 100 100 100 100 100 Level 1 . | . . . . . Level 2 . | . . . . . Level 3 . | . . . . . Level 4 . | . . . . . Level 5 . | . . . . . High Security . | . . . . . Max Security . | . . . . . Peak Influence 100 | . 54 100 62 86 Initial 12 | . . . 12 . Average 13 | . 7 25 5 17 Influence Increases 575 | . 101 258 50 166 Destroy 0b10 Robot/C 360 | . 80 180 40 60 Destroy 0b10 Robot/NC 15 | . . 10 . 5 Destroy Leader 82 | . 20 32 10 20 Successful Hack 5 | . . 5 . . Disable Machine 30 | . . . . 30 Destroy Structure 23 | . 1 1 . 21 Lose Combat Pursuer 60 | . . 30 . 30 Influence Decreases 575 | . 101 227 81 166 Entered New Map 19 | . . . 19 . Time Decay 490 | . 101 227 62 100 Lost Part 66 | . . . . 66 Squads Dispatched 7 | . 3 . . 4 Investigation 1 | . 1 . . . Extermination . | . . . . . Reinforcement 6 | . 2 . . 4 Assault . | . . . . . Garrison . | . . . . . Intercept . | . . . . . Searches Triggered . | . . . . . Construction Impeded 1 | . . . . 1 Haulers Reinforced . | . . . . . Active Scanning Responses . | . . . . . Cargo Convoy Interrupts . | . . . . . Stealth | -11 -10 -9 -9 -8 --------- Run | Yrd Mat Mat Min Mat Distress Signals 2 | . 2 . . . Communications Jammed . | . . . . . Distress Signals . | . . . . . Times Spotted 34 | . 8 11 5 10 Peak Tracking Total 4 | . 3 3 3 4 Tactical Retreats 3 | . . 1 . 2 Traps | -11 -10 -9 -9 -8 ------- Run | Yrd Mat Mat Min Mat Traps Triggered . | . . . . . Indirectly . | . . . . . Trap Hack Attempts . | . . . . . Triggered . | . . . . . Disarmed . | . . . . . Reprogrammed . | . . . . . Reused . | . . . . . Traps Extracted . | . . . . . Installed . | . . . . . Triggered . | . . . . . Machines | -11 -10 -9 -9 -8 ---------- Run | Yrd Mat Mat Min Mat Machines Disabled 2 | . . . . 2 Max in Single Turn 1 | . . . . 1 Machines Repaired . | . . . . . Machines Dismantled . | . . . . . Machines Sabotaged . | . . . . . Overloaded Fab Kills . | . . . . . Hacking | -11 -10 -9 -9 -8 --------- Run | Yrd Mat Mat Min Mat Machines Accessed 3 | . . 2 1 . Terminals 2 | . . 2 . . Fabricators . | . . . . . Repair Stations . | . . . . . Recycling Units . | . . . . . Scanalyzers . | . . . . . Garrison Access . | . . . . . Total Hacks 5 | . . 4 1 . Successful 2 | . . 1 1 . Failed 3 | . . 3 . . Catastrophic 1 | . . 1 . . Database Lockouts . | . . . . . Manual 4 | . . 4 . . Terminals 4 | . . 4 . . Fabricators . | . . . . . Repair Stations . | . . . . . Recycling Units . | . . . . . Scanalyzers . | . . . . . Garrison Access . | . . . . . Terminal Hacks 1 | . . . 1 . Open Door 1 | . . . 1 . Fabricator Hacks . | . . . . . Repair Station Hacks . | . . . . . Recycling Unit Hacks . | . . . . . Scanalyzer . | . . . . . Garrison Access Hacks . | . . . . . Unauthorized Hacks 1 | . . 1 . . Terminals 1 | . . 1 . . Botnet 1 | . . 1 . . Fabricators . | . . . . . Repair Stations . | . . . . . Recycling Units . | . . . . . Scanalyzers . | . . . . . Garrison Access . | . . . . . Data Cores Recovered . | . . . . . Used . | . . . . . Hacking Detections 1 | . . 1 . . Full Trace Events 1 | . . 1 . . Feedback Events . | . . . . . Feedback Blocked . | . . . . . Robot Schematics Acquired . | . . . . . Robots Built . | . . . . . Authchips . | . . . . . Time . | . . . . . Total Robot Build Rating . | . . . . . Part Schematics Acquired . | . . . . . Parts Built . | . . . . . Authchips . | . . . . . Time . | . . . . . Total Part Build Rating . | . . . . . Part Studies Acquired . | . . . . . Parts Repaired . | . . . . . Time . | . . . . . Parts Recycled . | . . . . . Recycled Matter . | . . . . . Retrieved Matter . | . . . . . Retrieved Components . | . . . . . Parts Scanalyzed . | . . . . . Part Schematics Acquired . | . . . . . Parts Damaged . | . . . . . Bothacking | -11 -10 -9 -9 -8 ------------ Run | Yrd Mat Mat Min Mat Used RIF Installer . | . . . . . Robots Hacked . | . . . . . Non-combat . | . . . . . Combat . | . . . . . Robot Hacks Applied . | . . . . . Relay Couplers Released . | . . . . . Fabnet Peak Effective % . | . . . . . Robots Rewired . | . . . . . Allies Hacked . | . . . . . Hacks Repelled . | . . . . . Allies | -11 -10 -9 -9 -8 -------- Run | Yrd Mat Mat Min Mat Total Allies . | . . . . . Largest Group . | . . . . . Highest-Rated Group . | . . . . . Highest-Rated Ally . | . . . . . Total Orders . | . . . . . Ally Attacks . | . . . . . Total Damage . | . . . . . Kills . | . . . . . Allies Corrupted . | . . . . . Allies Melted . | . . . . . Intel | -11 -10 -9 -9 -8 ------- Run | Yrd Mat Mat Min Mat Active Infowar (turns) . | . . . . . Robot Analysis Total . | . . . . . Derelict Logs Recovered . | . . . . . Drone Launches . | . . . . . Drone Recoveries . | . . . . . Exploration | -11 -10 -9 -9 -8 ------------- Run | Yrd Mat Mat Min Mat Turns Passed 2639 | 75 809 706 675 374 Spaces Moved 1024 | 46 374 195 342 67 Core 116 | 46 69 . . 1 Treads 908 | . 305 195 342 66 Legs . | . . . . . Wheels . | . . . . . Hover . | . . . . . Flight . | . . . . . Fastest Speed 50 | 50 160 240 160 160 Average Speed 181 | 143 172 240 160 201 Slowest Speed 600 | 200 250 240 160 600 Overloaded Moves . | . . . . . Propulsion Burnouts . | . . . . . Robots Hopped . | . . . . . Potential Cave-ins . | . . . . . Cave-ins Triggered . | . . . . . Exploration Rate (%) 33 | 4 68 18 71 5 Regions Visited 4 Branch Regions 1 Pre-discovered Areas . | . . . . . Known Exits Taken . | . . . . . Unknown Exits Taken 4 | 1 1 1 1 . Scrap Searched 1 | . . . 1 . Spaces Dug . | . . . . . Terrain Destroyed 22 | . . . . 22 Melee . | . . . . . Projectile . | . . . . . AOE 22 | . . . . 22 Terrain Rammed . | . . . . . Walls Destroyed . | . . . . . Machines Disabled . | . . . . . Actions | -11 -10 -9 -9 -8 --------- Run | Yrd Mat Mat Min Mat Total 1664 | 55 497 363 463 286 Wait 499 | . 82 110 111 196 Move 1020 | 45 373 194 341 67 Hop . | . . . . . Pick Up 33 | 7 10 11 3 2 Fast Attach 1 | 1 . . . . Attach 21 | 2 4 5 2 8 Detach . | . . . . . Swap 7 | . 3 3 . 1 Drop 14 | . 4 6 2 2 Fire 69 | . 21 34 4 10 Melee . | . . . . . Ram . | . . . . . Kick . | . . . . . Crush . | . . . . . Escape Stasis . | . . . . . Rewire . | . . . . . Trap . | . . . . . Miscellaneous . | . . . . . Route ------- -11/Scrapyard -10/Materials (discovered 2 exits: *Mat / [*Min]) -9/Materials -9/Mines -8/Materials History --------- Turn | Location | Event 11 | -11/Scrapyard | Discovered new exit (range 16) 76 | -11/Scrapyard | Entered Materials 300 | -10/Materials | Build established: Mutant 382 | -10/Materials | Discovered new exit (range 8) 601 | -10/Materials | Discovered new exit (range 5) 885 | -10/Materials | Entered another Materials area 885 | -9/Materials | Evolved 2 slots: Utility x1, Weapon x1 1190 | -9/Materials | Build established: Tank 1569 | -9/Materials | Discovered new exit (range 9) 1591 | -9/Materials | Entered Mines 1862 | -9/Mines | Met a Derelict who couldn't figure out how to use a Trap Extractor 2261 | -9/Mines | Discovered new exit (range 3) 2266 | -9/Mines | Entered Materials 2266 | -8/Materials | Evolved 2 slots: Utility x2 2640 | -8/Materials | Core integrity fell below 50% 2640 | -8/Materials | Self-destructed Last Messages --------------- 02611_ Slug penetrates Wall. 02616_ K-01 Serf collects debris. 02616_ Rocket Launcher destroyed. 02616_ Hvy. Assault Rifle destroyed. 02620_ K-01 Serf collects debris. 02620_ K-01 Serf destroyed. 02622_ Slug penetrates Electrolysis Chamber. 02623_ The unstable cave ceiling collapses. 02625_ Imp. Treads destroyed. 02627_ Imp. Ion Engine destroyed. 02630_ Critical hit (Destroy). 02631_ The unstable cave ceiling collapses. 02631_ Penetrated by Slug. 02631_ Flak Gun destroyed. 02632_ Knocked back. 02634_ Imp. Medium Armor Plating destroyed. 02636_ The unstable cave ceiling collapses. 02637_ Critical hit (Destroy). 02637_ Mni. Grenade Launcher destroyed. 02640_ Slug penetrates Wall. Map ----- +----------------------------------------------------+ | | | | | ??????????????????????????????????????? | | ??????????????????????????????????????? | | ??????????????????????????????????????? | | ??????????????????????????????????????? | | ??????????????????????????????????????? | | ??????????????????????????????????????? | | ??????????????????????????????????????? | | ??????????????????????????????????????? | | ??????????????????????????????????????? | | ??????????????????????????????????????? | | ??????????????????????????????????????? | | ??????????????????????????????????????? | | ??????????????????????????????????????? | | ???????????????????????????#####??????? | | ???????????????????????????# #???? # | | ???????????????????????????# #?? # | | ???????????????????????????# # """ =# | | ???????????????????????????# + """ # | | ???????????????????????????# # """ # | | ???????????????????????????# #?? # | | ???????????????????????##??# #???? # | | ????????????????????####;### #??????? | | ????????????????????# % ; #??????? | | ????????????????????# ""@ #??????? | | ????????????????????# "" % %#??????? | | ???????????????????## #??????? | | ???????????????????# # #??????? | | ???????????????????# xh #??????? | | ???????????????????# #H* #??????? | | ??????????????????## ! x ![#??????? | | ??????????????????# [ = #??????? | | ??????????????????## ! ! #??????? | | ??????????????????## ! = #??????? | | ???????????????????## # #??????? | | ????????????????????# # #??????? | | ????????????????????#######; #??????? | | ???????????????????????????; %#??????? | | ???????????????????????????# #??????? | | ???????????????????????????# +??????? | | ???????????????????????????# # ?????? | | ???????????????????????????? % # ?????? | | ???????????????????????????? #?#????? | | ????????????????????????????% ??????? | | ???????????????????????????? ??????? | | ???????????????????????????? ??????? | | ???????????????????????????? ??????? | | ???????????????????????????? ???????? | | ??????????????????????????????????????? | +----------------------------------------------------+ Best States ------------- Heat Dissipation 31 Energy Generation 12 Energy Capacity 265 Matter Stores 450 Matter Capacity 450 Sight Range 16 Terrain Scan Density 10 Armor Coverage 225 Power Shielding 33 Weapon Shielding 33 Evasion (%) 40 Recoil Reduction 2 Item Schematics ----------------- None Robot Schematics ------------------ None Fabricated ------------ Nothing Repaired ---------- Nothing Studied --------- None Alien Tech Used ----------------- None Achievements -------------- None Challenges ------------ None Game ------ Seed AssembledSensorGriptreads Manual? 0 Play Time 00:18:41 Cumulative 28.6 hours Start 2025.11.17 @ 18:35:25 End 2025.11.17 @ 18:52:23 Sessions 1 Manual Loads 0 Difficulty Rogue Special Mode None Game No. 87 Rogue 87 Adventurer 0 Explorer 0 Win Type - Total 0 Types 0/0/0/0/0/0/0/0/0/0 Lore% 7 Gallery% 23 Achievement% 17 Wizard Run 0 Options --------- Layout 1 ASCII 0 Keyboard 0 Movement Mouse Keybinds 0 Fullscreen 1 Font 24/Terminus Map View 50x35 Zoom Use 0% Tactical HUD 1 Map Filters NONE Filters NONE Steam 1 RUN: 938800f1-4fb8-4dd9-b248-1c95186b4f94